﻿Department Family,Entity,Date of Payment,Expense Type,Expense Area,Supplier,Transaction Number,Amount in Sterling,Line description
ECGD,ECGD,6 Sep 22,Home Travel /Subsistence,Business Group _ Main,Clarity Travel Ltd,         206,£1.00,Business Travel
ECGD,ECGD,6 Sep 22,Home Travel /Subsistence,Business Group _ Main,Clarity Travel Ltd,         206,£1.00,Business Travel
ECGD,ECGD,6 Sep 22,Home Travel /Subsistence,Business Group _ Main,Clarity Travel Ltd,         206,£1.00,Business Travel
ECGD,ECGD,6 Sep 22,Home Travel /Subsistence,Business Group _ Main,Clarity Travel Ltd,         206,£1.00,Business Travel
ECGD,ECGD,6 Sep 22,Home Travel /Subsistence,Business Group _ Main,Clarity Travel Ltd,         206,£1.00,Business Travel
ECGD,ECGD,6 Sep 22,Home Travel /Subsistence,Business Group _ Main,Clarity Travel Ltd,         206,£1.00,Business Travel
ECGD,ECGD,6 Sep 22,Home Travel /Subsistence,Business Group _ Main,Clarity Travel Ltd,         206,£1.00,Business Travel
ECGD,ECGD,6 Sep 22,Home Travel /Subsistence,Business Group _ Main,Clarity Travel Ltd,         206,£2.00,Business Travel
ECGD,ECGD,6 Sep 22,Home Travel /Subsistence,Business Group _ Main,Clarity Travel Ltd,         206,£2.00,Business Travel
ECGD,ECGD,6 Sep 22,Home Travel /Subsistence,Business Group _ Main,Clarity Travel Ltd,         206,£2.00,Business Travel
ECGD,ECGD,6 Sep 22,Home Travel /Subsistence,Business Group _ Main,Clarity Travel Ltd,         206,£2.00,Business Travel
ECGD,ECGD,6 Sep 22,Home Travel /Subsistence,Business Group _ Main,Clarity Travel Ltd,         206,£2.00,Business Travel
ECGD,ECGD,6 Sep 22,Home Travel /Subsistence,Business Group _ Main,Clarity Travel Ltd,         206,£3.00,Business Travel
ECGD,ECGD,6 Sep 22,Home Travel /Subsistence,Business Group _ Main,Clarity Travel Ltd,         206,£4.00,Business Travel
ECGD,ECGD,6 Sep 22,Home Travel /Subsistence,Business Group _ Main,Clarity Travel Ltd,         206,£4.00,Business Travel
ECGD,ECGD,6 Sep 22,Home Travel /Subsistence,Business Group _ Main,Clarity Travel Ltd,         206,£4.00,Business Travel
ECGD,ECGD,6 Sep 22,Home Travel /Subsistence,Business Group _ Main,Clarity Travel Ltd,         206,£7.00,Business Travel
ECGD,ECGD,6 Sep 22,Home Travel /Subsistence,Business Group _ Main,Clarity Travel Ltd,         206,£7.00,Business Travel
ECGD,ECGD,6 Sep 22,Home Travel /Subsistence,Business Group _ Main,Clarity Travel Ltd,         206,£7.00,Business Travel
ECGD,ECGD,6 Sep 22,Home Travel /Subsistence,Business Group _ Main,Clarity Travel Ltd,         206,£23.90,Business Travel
ECGD,ECGD,6 Sep 22,Home Travel /Subsistence,Business Group _ Main,Clarity Travel Ltd,         206,£40.70,Business Travel
ECGD,ECGD,6 Sep 22,Home Travel /Subsistence,Business Group _ Main,Clarity Travel Ltd,         206,£41.50,Business Travel
ECGD,ECGD,6 Sep 22,Home Travel /Subsistence,Business Group _ Main,Clarity Travel Ltd,         206,£54.50,Business Travel
ECGD,ECGD,6 Sep 22,Home Travel /Subsistence,Business Group _ Main,Clarity Travel Ltd,         206,£58.33,Business Travel
ECGD,ECGD,6 Sep 22,Home Travel /Subsistence,Business Group _ Main,Clarity Travel Ltd,         206,£65.76,Business Travel
ECGD,ECGD,6 Sep 22,Home Travel /Subsistence,Business Group _ Main,Clarity Travel Ltd,         206,£71.50,Business Travel
ECGD,ECGD,6 Sep 22,Home Travel /Subsistence,Business Group _ Main,Clarity Travel Ltd,         206,£72.40,Business Travel
ECGD,ECGD,6 Sep 22,Home Travel /Subsistence,Business Group _ Main,Clarity Travel Ltd,         206,£74.50,Business Travel
ECGD,ECGD,6 Sep 22,Home Travel /Subsistence,Business Group _ Main,Clarity Travel Ltd,         206,£116.67,Business Travel
ECGD,ECGD,6 Sep 22,Home Travel /Subsistence,Business Group _ Main,Clarity Travel Ltd,         206,£116.93,Business Travel
ECGD,ECGD,6 Sep 22,Home Travel /Subsistence,Business Group _ Main,Clarity Travel Ltd,         206,£125.00,Business Travel
ECGD,ECGD,6 Sep 22,Home Travel /Subsistence,Business Group _ Main,Clarity Travel Ltd,         206,£127.98,Business Travel
ECGD,ECGD,6 Sep 22,Home Travel /Subsistence,Business Group _ Main,Clarity Travel Ltd,         206,£163.20,Business Travel
ECGD,ECGD,6 Sep 22,Home Travel /Subsistence,Business Group _ Main,Clarity Travel Ltd,         206,£175.00,Business Travel
ECGD,ECGD,6 Sep 22,Home Travel /Subsistence,Business Group _ Main,Clarity Travel Ltd,         206,£183.39,Business Travel
ECGD,ECGD,6 Sep 22,Home Travel /Subsistence,Business Group _ Main,Clarity Travel Ltd,         206,£204.30,Business Travel
ECGD,ECGD,6 Sep 22,Home Travel /Subsistence,Business Group _ Main,Clarity Travel Ltd,         206,£229.69,Business Travel
ECGD,ECGD,6 Sep 22,Home Travel /Subsistence,Business Group _ Main,Clarity Travel Ltd,         206,£242.38,Business Travel
ECGD,ECGD,6 Sep 22,Home Travel /Subsistence,Business Group _ Main,Clarity Travel Ltd,         206,£249.00,Business Travel
ECGD,ECGD,6 Sep 22,Home Travel /Subsistence,Business Group _ Main,Clarity Travel Ltd,         206,£302.50,Business Travel
ECGD,ECGD,6 Sep 22,Home Travel /Subsistence,Business Group _ Main,Clarity Travel Ltd,         206,£302.50,Business Travel
ECGD,ECGD,6 Sep 22,Home Travel /Subsistence,Business Group _ Main,Clarity Travel Ltd,         206,£382.50,Business Travel
ECGD,ECGD,6 Sep 22,Home Travel /Subsistence,Business Group _ Main,Clarity Travel Ltd,         206,£382.50,Business Travel
ECGD,ECGD,6 Sep 22,Home Travel /Subsistence,HRD,Clarity Travel Ltd,         206,£1.00,Business Travel
ECGD,ECGD,6 Sep 22,Home Travel /Subsistence,HRD,Clarity Travel Ltd,         206,£1.00,Business Travel
ECGD,ECGD,6 Sep 22,Home Travel /Subsistence,HRD,Clarity Travel Ltd,         206,£1.00,Business Travel
ECGD,ECGD,6 Sep 22,Home Travel /Subsistence,HRD,Clarity Travel Ltd,         206,£1.00,Business Travel
ECGD,ECGD,6 Sep 22,Home Travel /Subsistence,HRD,Clarity Travel Ltd,         206,£49.10,Business Travel
ECGD,ECGD,6 Sep 22,Home Travel /Subsistence,HRD,Clarity Travel Ltd,         206,£49.10,Business Travel
ECGD,ECGD,6 Sep 22,Home Travel /Subsistence,HRD,Clarity Travel Ltd,         206,£98.20,Business Travel
ECGD,ECGD,6 Sep 22,Home Travel /Subsistence,HRD,Clarity Travel Ltd,         206,£98.20,Business Travel
ECGD,ECGD,6 Sep 22,Home Travel /Subsistence,OCCMC,Clarity Travel Ltd,         206,£1.00,Business Travel
ECGD,ECGD,6 Sep 22,Home Travel /Subsistence,OCCMC,Clarity Travel Ltd,         206,£1.00,Business Travel
ECGD,ECGD,6 Sep 22,Home Travel /Subsistence,OCCMC,Clarity Travel Ltd,         206,£2.00,Business Travel
ECGD,ECGD,6 Sep 22,Home Travel /Subsistence,OCCMC,Clarity Travel Ltd,         206,£2.00,Business Travel
ECGD,ECGD,6 Sep 22,Home Travel /Subsistence,OCCMC,Clarity Travel Ltd,         206,£2.00,Business Travel
ECGD,ECGD,6 Sep 22,Home Travel /Subsistence,OCCMC,Clarity Travel Ltd,         206,£5.00,Business Travel
ECGD,ECGD,6 Sep 22,Home Travel /Subsistence,OCCMC,Clarity Travel Ltd,         206,£7.00,Business Travel
ECGD,ECGD,6 Sep 22,Home Travel /Subsistence,OCCMC,Clarity Travel Ltd,         206,£7.00,Business Travel
ECGD,ECGD,6 Sep 22,Home Travel /Subsistence,OCCMC,Clarity Travel Ltd,         206,£7.00,Business Travel
ECGD,ECGD,6 Sep 22,Home Travel /Subsistence,OCCMC,Clarity Travel Ltd,         206,£137.98,Business Travel
ECGD,ECGD,6 Sep 22,Home Travel /Subsistence,OCCMC,Clarity Travel Ltd,         206,£163.76,Business Travel
ECGD,ECGD,6 Sep 22,Home Travel /Subsistence,OCCMC,Clarity Travel Ltd,         206,£210.00,Business Travel
ECGD,ECGD,6 Sep 22,Home Travel /Subsistence,OCCMC,Clarity Travel Ltd,         206,£233.60,Business Travel
ECGD,ECGD,6 Sep 22,Home Travel /Subsistence,OCCMC,Clarity Travel Ltd,         206,£245.20,Business Travel
ECGD,ECGD,6 Sep 22,Home Travel /Subsistence,OCCMC,Clarity Travel Ltd,         206,£245.20,Business Travel
ECGD,ECGD,6 Sep 22,Home Travel /Subsistence,OCCMC,Clarity Travel Ltd,         206,£591.33,Business Travel
ECGD,ECGD,6 Sep 22,Home Travel /Subsistence,SPoCC,Clarity Travel Ltd,         206,£1.00,Business Travel
ECGD,ECGD,6 Sep 22,Home Travel /Subsistence,SPoCC,Clarity Travel Ltd,         206,£1.00,Business Travel
ECGD,ECGD,6 Sep 22,Home Travel /Subsistence,SPoCC,Clarity Travel Ltd,         206,£2.00,Business Travel
ECGD,ECGD,6 Sep 22,Home Travel /Subsistence,SPoCC,Clarity Travel Ltd,         206,£70.00,Business Travel
ECGD,ECGD,6 Sep 22,Home Travel /Subsistence,SPoCC,Clarity Travel Ltd,         206,£136.30,Business Travel
ECGD,ECGD,6 Sep 22,Home Travel /Subsistence,SPoCC,Clarity Travel Ltd,         206,£161.90,Business Travel
ECGD,ECGD,6 Sep 22,Home Travel /Subsistence,Special Situations Division,Clarity Travel Ltd,         206,£2.00,Business Travel
ECGD,ECGD,6 Sep 22,Home Travel /Subsistence,Special Situations Division,Clarity Travel Ltd,         206,£2.00,Business Travel
ECGD,ECGD,6 Sep 22,Home Travel /Subsistence,Special Situations Division,Clarity Travel Ltd,         206,£2.00,Business Travel
ECGD,ECGD,6 Sep 22,Home Travel /Subsistence,Special Situations Division,Clarity Travel Ltd,         206,£2.00,Business Travel
ECGD,ECGD,6 Sep 22,Home Travel /Subsistence,Special Situations Division,Clarity Travel Ltd,         206,£2.00,Business Travel
ECGD,ECGD,6 Sep 22,Home Travel /Subsistence,Special Situations Division,Clarity Travel Ltd,         206,£2.00,Business Travel
ECGD,ECGD,6 Sep 22,Home Travel /Subsistence,Special Situations Division,Clarity Travel Ltd,         206,£2.00,Business Travel
ECGD,ECGD,6 Sep 22,Home Travel /Subsistence,Special Situations Division,Clarity Travel Ltd,         206,£2.00,Business Travel
ECGD,ECGD,6 Sep 22,Home Travel /Subsistence,Special Situations Division,Clarity Travel Ltd,         206,£19.00,Business Travel
ECGD,ECGD,6 Sep 22,Home Travel /Subsistence,Special Situations Division,Clarity Travel Ltd,         206,£19.00,Business Travel
ECGD,ECGD,6 Sep 22,Home Travel /Subsistence,Special Situations Division,Clarity Travel Ltd,         206,£19.00,Business Travel
ECGD,ECGD,6 Sep 22,Home Travel /Subsistence,Special Situations Division,Clarity Travel Ltd,         206,£19.00,Business Travel
ECGD,ECGD,6 Sep 22,Home Travel /Subsistence,Special Situations Division,Clarity Travel Ltd,         206,£36.00,Business Travel
ECGD,ECGD,6 Sep 22,Home Travel /Subsistence,Special Situations Division,Clarity Travel Ltd,         206,£36.00,Business Travel
ECGD,ECGD,6 Sep 22,Home Travel /Subsistence,Special Situations Division,Clarity Travel Ltd,         206,£36.00,Business Travel
ECGD,ECGD,6 Sep 22,Home Travel /Subsistence,Special Situations Division,Clarity Travel Ltd,         206,£49.50,Business Travel
ECGD,ECGD,6 Sep 22,Overseas Travel (Case Related),Business Group _ Main,Clarity Travel Ltd,         206,£2.00,Business Travel
ECGD,ECGD,6 Sep 22,Overseas Travel (Case Related),Business Group _ Main,Clarity Travel Ltd,         206,£2.00,Business Travel
ECGD,ECGD,6 Sep 22,Overseas Travel (Case Related),Business Group _ Main,Clarity Travel Ltd,         206,£211.57,Business Travel
ECGD,ECGD,6 Sep 22,Overseas Travel (Case Related),Business Group _ Main,Clarity Travel Ltd,         206,£211.57,Business Travel
ECGD,ECGD,6 Sep 22,Overseas Travel (Case Related),Digital and Data Division,Clarity Travel Ltd,         206,£3.50,Business Travel
ECGD,ECGD,6 Sep 22,Overseas Travel (Case Related),Digital and Data Division,Clarity Travel Ltd,         206,£3.50,Business Travel
ECGD,ECGD,6 Sep 22,Overseas Travel (Case Related),Digital and Data Division,Clarity Travel Ltd,         206,£368.87,Business Travel
ECGD,ECGD,6 Sep 22,Overseas Travel (Case Related),Digital and Data Division,Clarity Travel Ltd,         206,£368.87,Business Travel
ECGD,ECGD,6 Sep 22,Overseas Travel (Case Related),SPoCC,Clarity Travel Ltd,         206,£2.00,Business Travel
ECGD,ECGD,6 Sep 22,Overseas Travel (Case Related),SPoCC,Clarity Travel Ltd,         206,£3.50,Business Travel
ECGD,ECGD,6 Sep 22,Overseas Travel (Case Related),SPoCC,Clarity Travel Ltd,         206,£3.50,Business Travel
ECGD,ECGD,6 Sep 22,Overseas Travel (Case Related),SPoCC,Clarity Travel Ltd,         206,£3.50,Business Travel
ECGD,ECGD,6 Sep 22,Overseas Travel (Case Related),SPoCC,Clarity Travel Ltd,         206,£3.50,Business Travel
ECGD,ECGD,6 Sep 22,Overseas Travel (Case Related),SPoCC,Clarity Travel Ltd,         206,£3.50,Business Travel
ECGD,ECGD,6 Sep 22,Overseas Travel (Case Related),SPoCC,Clarity Travel Ltd,         206,£3.50,Business Travel
ECGD,ECGD,6 Sep 22,Overseas Travel (Case Related),SPoCC,Clarity Travel Ltd,         206,£5.50,Business Travel
ECGD,ECGD,6 Sep 22,Overseas Travel (Case Related),SPoCC,Clarity Travel Ltd,         206,£5.50,Business Travel
ECGD,ECGD,6 Sep 22,Overseas Travel (Case Related),SPoCC,Clarity Travel Ltd,         206,£7.00,Business Travel
ECGD,ECGD,6 Sep 22,Overseas Travel (Case Related),SPoCC,Clarity Travel Ltd,         206,£7.00,Business Travel
ECGD,ECGD,6 Sep 22,Overseas Travel (Case Related),SPoCC,Clarity Travel Ltd,         206,£7.00,Business Travel
ECGD,ECGD,6 Sep 22,Overseas Travel (Case Related),SPoCC,Clarity Travel Ltd,         206,£7.00,Business Travel
ECGD,ECGD,6 Sep 22,Overseas Travel (Case Related),SPoCC,Clarity Travel Ltd,         206,£7.00,Business Travel
ECGD,ECGD,6 Sep 22,Overseas Travel (Case Related),SPoCC,Clarity Travel Ltd,         206,£7.00,Business Travel
ECGD,ECGD,6 Sep 22,Overseas Travel (Case Related),SPoCC,Clarity Travel Ltd,         206,£7.00,Business Travel
ECGD,ECGD,6 Sep 22,Overseas Travel (Case Related),SPoCC,Clarity Travel Ltd,         206,£7.00,Business Travel
ECGD,ECGD,6 Sep 22,Overseas Travel (Case Related),SPoCC,Clarity Travel Ltd,         206,£183.98,Business Travel
ECGD,ECGD,6 Sep 22,Overseas Travel (Case Related),SPoCC,Clarity Travel Ltd,         206,£213.00,Business Travel
ECGD,ECGD,6 Sep 22,Overseas Travel (Case Related),SPoCC,Clarity Travel Ltd,         206,£254.00,Business Travel
ECGD,ECGD,6 Sep 22,Overseas Travel (Case Related),SPoCC,Clarity Travel Ltd,         206,£349.40,Business Travel
ECGD,ECGD,6 Sep 22,Overseas Travel (Case Related),SPoCC,Clarity Travel Ltd,         206,£349.40,Business Travel
ECGD,ECGD,6 Sep 22,Overseas Travel (Case Related),SPoCC,Clarity Travel Ltd,         206,£349.40,Business Travel
ECGD,ECGD,6 Sep 22,Overseas Travel (Case Related),SPoCC,Clarity Travel Ltd,         206,£349.40,Business Travel
ECGD,ECGD,6 Sep 22,Overseas Travel (Case Related),SPoCC,Clarity Travel Ltd,         206,"£1,202.97",Business Travel
ECGD,ECGD,6 Sep 22,Overseas Travel (Case Related),SPoCC,Clarity Travel Ltd,         206,"£1,451.93",Business Travel
ECGD,ECGD,6 Sep 22,Overseas Travel (Case Related),SPoCC,Clarity Travel Ltd,         206,"£1,451.93",Business Travel
ECGD,ECGD,6 Sep 22,Overseas Travel (Case Related),SPoCC,Clarity Travel Ltd,         206,"£2,729.16",Business Travel
ECGD,ECGD,6 Sep 22,Overseas Travel (Case Related),SPoCC,Clarity Travel Ltd,         206,"£3,319.67",Business Travel
ECGD,ECGD,6 Sep 22,Overseas Travel (Case Related),SPoCC,Clarity Travel Ltd,         206,"£3,319.67",Business Travel
ECGD,ECGD,6 Sep 22,Overseas Travel (Case Related),SPoCC,Clarity Travel Ltd,         206,"£4,258.85",Business Travel
ECGD,ECGD,6 Sep 22,Overseas Travel (Case Related),SPoCC,Clarity Travel Ltd,         206,"£6,187.16",Business Travel
ECGD,ECGD,6 Sep 22,Overseas Travel (Case Related),SPoCC,Clarity Travel Ltd,         206,"£6,187.16",Business Travel
ECGD,ECGD,6 Sep 22,Overseas Travel (Case Related),SPoCC,Clarity Travel Ltd,         206,"£6,187.16",Business Travel
ECGD,ECGD,6 Sep 22,Overseas Travel/Subsistence,Business Group _ Main,Clarity Travel Ltd,         206,£4.00,Business Travel
ECGD,ECGD,6 Sep 22,Overseas Travel/Subsistence,Business Group _ Main,Clarity Travel Ltd,         206,£7.00,Business Travel
ECGD,ECGD,6 Sep 22,Overseas Travel/Subsistence,Business Group _ Main,Clarity Travel Ltd,         206,£7.00,Business Travel
ECGD,ECGD,6 Sep 22,Overseas Travel/Subsistence,Business Group _ Main,Clarity Travel Ltd,         206,£7.00,Business Travel
ECGD,ECGD,6 Sep 22,Overseas Travel/Subsistence,Business Group _ Main,Clarity Travel Ltd,         206,£9.00,Business Travel
ECGD,ECGD,6 Sep 22,Overseas Travel/Subsistence,Business Group _ Main,Clarity Travel Ltd,         206,£314.00,Business Travel
ECGD,ECGD,6 Sep 22,Overseas Travel/Subsistence,Business Group _ Main,Clarity Travel Ltd,         206,£314.00,Business Travel
ECGD,ECGD,6 Sep 22,Overseas Travel/Subsistence,Business Group _ Main,Clarity Travel Ltd,         206,£451.21,Business Travel
ECGD,ECGD,6 Sep 22,Overseas Travel/Subsistence,Business Group _ Main,Clarity Travel Ltd,         206,"£2,645.47",Business Travel
ECGD,ECGD,6 Sep 22,Overseas Travel/Subsistence,Business Group _ Main,Clarity Travel Ltd,         206,"£3,811.58",Business Travel
ECGD,ECGD,6 Sep 22,Overseas Travel/Subsistence,Digital and Data Division,Clarity Travel Ltd,         206,£1.00,Business Travel
ECGD,ECGD,6 Sep 22,Overseas Travel/Subsistence,Digital and Data Division,Clarity Travel Ltd,         206,£1.00,Business Travel
ECGD,ECGD,6 Sep 22,Overseas Travel/Subsistence,Digital and Data Division,Clarity Travel Ltd,         206,£1.00,Business Travel
ECGD,ECGD,6 Sep 22,Overseas Travel/Subsistence,Digital and Data Division,Clarity Travel Ltd,         206,£1.00,Business Travel
ECGD,ECGD,6 Sep 22,Overseas Travel/Subsistence,Digital and Data Division,Clarity Travel Ltd,         206,£19.05,Business Travel
ECGD,ECGD,6 Sep 22,Overseas Travel/Subsistence,Digital and Data Division,Clarity Travel Ltd,         206,£19.05,Business Travel
ECGD,ECGD,6 Sep 22,Overseas Travel/Subsistence,Digital and Data Division,Clarity Travel Ltd,         206,£48.60,Business Travel
ECGD,ECGD,6 Sep 22,Overseas Travel/Subsistence,Digital and Data Division,Clarity Travel Ltd,         206,£48.60,Business Travel
ECGD,ECGD,6 Sep 22,Overseas Travel/Subsistence,OCCMC,Clarity Travel Ltd,         206,£3.50,Business Travel
ECGD,ECGD,6 Sep 22,Overseas Travel/Subsistence,OCCMC,Clarity Travel Ltd,         206,£3.50,Business Travel
ECGD,ECGD,6 Sep 22,Overseas Travel/Subsistence,OCCMC,Clarity Travel Ltd,         206,£7.00,Business Travel
ECGD,ECGD,6 Sep 22,Overseas Travel/Subsistence,OCCMC,Clarity Travel Ltd,         206,£7.00,Business Travel
ECGD,ECGD,6 Sep 22,Overseas Travel/Subsistence,OCCMC,Clarity Travel Ltd,         206,£7.00,Business Travel
ECGD,ECGD,6 Sep 22,Overseas Travel/Subsistence,OCCMC,Clarity Travel Ltd,         206,£7.00,Business Travel
ECGD,ECGD,6 Sep 22,Overseas Travel/Subsistence,OCCMC,Clarity Travel Ltd,         206,£7.00,Business Travel
ECGD,ECGD,6 Sep 22,Overseas Travel/Subsistence,OCCMC,Clarity Travel Ltd,         206,£7.00,Business Travel
ECGD,ECGD,6 Sep 22,Overseas Travel/Subsistence,OCCMC,Clarity Travel Ltd,         206,£7.00,Business Travel
ECGD,ECGD,6 Sep 22,Overseas Travel/Subsistence,OCCMC,Clarity Travel Ltd,         206,£7.00,Business Travel
ECGD,ECGD,6 Sep 22,Overseas Travel/Subsistence,OCCMC,Clarity Travel Ltd,         206,£115.00,Business Travel
ECGD,ECGD,6 Sep 22,Overseas Travel/Subsistence,OCCMC,Clarity Travel Ltd,         206,£170.86,Business Travel
ECGD,ECGD,6 Sep 22,Overseas Travel/Subsistence,OCCMC,Clarity Travel Ltd,         206,£324.20,Business Travel
ECGD,ECGD,6 Sep 22,Overseas Travel/Subsistence,OCCMC,Clarity Travel Ltd,         206,£369.60,Business Travel
ECGD,ECGD,6 Sep 22,Overseas Travel/Subsistence,OCCMC,Clarity Travel Ltd,         206,£398.60,Business Travel
ECGD,ECGD,6 Sep 22,Overseas Travel/Subsistence,OCCMC,Clarity Travel Ltd,         206,£398.60,Business Travel
ECGD,ECGD,6 Sep 22,Overseas Travel/Subsistence,OCCMC,Clarity Travel Ltd,         206,£469.40,Business Travel
ECGD,ECGD,6 Sep 22,Overseas Travel/Subsistence,OCCMC,Clarity Travel Ltd,         206,£784.83,Business Travel
ECGD,ECGD,6 Sep 22,Overseas Travel/Subsistence,OCCMC,Clarity Travel Ltd,         206,£910.56,Business Travel
ECGD,ECGD,6 Sep 22,Overseas Travel/Subsistence,OCCMC,Clarity Travel Ltd,         206,"£2,180.40",Business Travel
ECGD,ECGD,6 Sep 22,Overseas Travel/Subsistence,OCCMC,Clarity Travel Ltd,         206,"£2,645.47",Business Travel
ECGD,ECGD,6 Sep 22,Overseas Travel/Subsistence,OCCMC,Clarity Travel Ltd,         206,"£3,373.20",Business Travel
ECGD,ECGD,6 Sep 22,Overseas Travel/Subsistence,Portfolio Management Division,Clarity Travel Ltd,         206,£3.50,Business Travel
ECGD,ECGD,6 Sep 22,Overseas Travel/Subsistence,Portfolio Management Division,Clarity Travel Ltd,         206,£657.45,Business Travel
ECGD,ECGD,6 Sep 22,Overseas Travel/Subsistence,Risk Approval Division,Clarity Travel Ltd,         206,£7.00,Business Travel
ECGD,ECGD,6 Sep 22,Overseas Travel/Subsistence,Risk Approval Division,Clarity Travel Ltd,         206,£7.00,Business Travel
ECGD,ECGD,6 Sep 22,Overseas Travel/Subsistence,Risk Approval Division,Clarity Travel Ltd,         206,£7.00,Business Travel
ECGD,ECGD,6 Sep 22,Overseas Travel/Subsistence,Risk Approval Division,Clarity Travel Ltd,         206,£289.00,Business Travel
ECGD,ECGD,6 Sep 22,Overseas Travel/Subsistence,Risk Approval Division,Clarity Travel Ltd,         206,£289.00,Business Travel
ECGD,ECGD,6 Sep 22,Overseas Travel/Subsistence,Risk Approval Division,Clarity Travel Ltd,         206,£289.00,Business Travel
ECGD,ECGD,6 Sep 22,Overseas Travel/Subsistence,SPoCC,Clarity Travel Ltd,         206,£3.50,Business Travel
ECGD,ECGD,6 Sep 22,Overseas Travel/Subsistence,SPoCC,Clarity Travel Ltd,         206,£7.00,Business Travel
ECGD,ECGD,6 Sep 22,Overseas Travel/Subsistence,SPoCC,Clarity Travel Ltd,         206,£9.00,Business Travel
ECGD,ECGD,6 Sep 22,Overseas Travel/Subsistence,SPoCC,Clarity Travel Ltd,         206,£527.67,Business Travel
ECGD,ECGD,6 Sep 22,Overseas Travel/Subsistence,SPoCC,Clarity Travel Ltd,         206,"£3,549.47",Business Travel
ECGD,ECGD,6 Sep 22,Overseas Travel/Subsistence,SPoCC,Clarity Travel Ltd,         206,"£3,811.58",Business Travel
ECGD,ECGD,12 Sep 22,External Meeting Rooms,SPoCC,Clarity Travel Ltd,         211,-£22.64,Venue Hire
ECGD,ECGD,12 Sep 22,External Meeting Rooms,SPoCC,Clarity Travel Ltd,         211,"£1,337.51",Venue Hire
ECGD,ECGD,12 Sep 22,Home Travel /Subsistence,Business Group _ Main,Clarity Travel Ltd,         211,£1.00,Business Travel
ECGD,ECGD,12 Sep 22,Home Travel /Subsistence,Business Group _ Main,Clarity Travel Ltd,         211,£1.00,Business Travel
ECGD,ECGD,12 Sep 22,Home Travel /Subsistence,Business Group _ Main,Clarity Travel Ltd,         211,£1.00,Business Travel
ECGD,ECGD,12 Sep 22,Home Travel /Subsistence,Business Group _ Main,Clarity Travel Ltd,         211,£1.00,Business Travel
ECGD,ECGD,12 Sep 22,Home Travel /Subsistence,Business Group _ Main,Clarity Travel Ltd,         211,£1.00,Business Travel
ECGD,ECGD,12 Sep 22,Home Travel /Subsistence,Business Group _ Main,Clarity Travel Ltd,         211,£1.00,Business Travel
ECGD,ECGD,12 Sep 22,Home Travel /Subsistence,Business Group _ Main,Clarity Travel Ltd,         211,£1.00,Business Travel
ECGD,ECGD,12 Sep 22,Home Travel /Subsistence,Business Group _ Main,Clarity Travel Ltd,         211,£1.00,Business Travel
ECGD,ECGD,12 Sep 22,Home Travel /Subsistence,Business Group _ Main,Clarity Travel Ltd,         211,£1.00,Business Travel
ECGD,ECGD,12 Sep 22,Home Travel /Subsistence,Business Group _ Main,Clarity Travel Ltd,         211,£1.00,Business Travel
ECGD,ECGD,12 Sep 22,Home Travel /Subsistence,Business Group _ Main,Clarity Travel Ltd,         211,£2.00,Business Travel
ECGD,ECGD,12 Sep 22,Home Travel /Subsistence,Business Group _ Main,Clarity Travel Ltd,         211,£2.00,Business Travel
ECGD,ECGD,12 Sep 22,Home Travel /Subsistence,Business Group _ Main,Clarity Travel Ltd,         211,£2.00,Business Travel
ECGD,ECGD,12 Sep 22,Home Travel /Subsistence,Business Group _ Main,Clarity Travel Ltd,         211,£2.00,Business Travel
ECGD,ECGD,12 Sep 22,Home Travel /Subsistence,Business Group _ Main,Clarity Travel Ltd,         211,£2.00,Business Travel
ECGD,ECGD,12 Sep 22,Home Travel /Subsistence,Business Group _ Main,Clarity Travel Ltd,         211,£2.00,Business Travel
ECGD,ECGD,12 Sep 22,Home Travel /Subsistence,Business Group _ Main,Clarity Travel Ltd,         211,£2.00,Business Travel
ECGD,ECGD,12 Sep 22,Home Travel /Subsistence,Business Group _ Main,Clarity Travel Ltd,         211,£3.70,Business Travel
ECGD,ECGD,12 Sep 22,Home Travel /Subsistence,Business Group _ Main,Clarity Travel Ltd,         211,£4.00,Business Travel
ECGD,ECGD,12 Sep 22,Home Travel /Subsistence,Business Group _ Main,Clarity Travel Ltd,         211,£4.00,Business Travel
ECGD,ECGD,12 Sep 22,Home Travel /Subsistence,Business Group _ Main,Clarity Travel Ltd,         211,£4.00,Business Travel
ECGD,ECGD,12 Sep 22,Home Travel /Subsistence,Business Group _ Main,Clarity Travel Ltd,         211,£4.00,Business Travel
ECGD,ECGD,12 Sep 22,Home Travel /Subsistence,Business Group _ Main,Clarity Travel Ltd,         211,£7.00,Business Travel
ECGD,ECGD,12 Sep 22,Home Travel /Subsistence,Business Group _ Main,Clarity Travel Ltd,         211,£7.00,Business Travel
ECGD,ECGD,12 Sep 22,Home Travel /Subsistence,Business Group _ Main,Clarity Travel Ltd,         211,£22.90,Business Travel
ECGD,ECGD,12 Sep 22,Home Travel /Subsistence,Business Group _ Main,Clarity Travel Ltd,         211,£26.90,Business Travel
ECGD,ECGD,12 Sep 22,Home Travel /Subsistence,Business Group _ Main,Clarity Travel Ltd,         211,£26.90,Business Travel
ECGD,ECGD,12 Sep 22,Home Travel /Subsistence,Business Group _ Main,Clarity Travel Ltd,         211,£30.85,Business Travel
ECGD,ECGD,12 Sep 22,Home Travel /Subsistence,Business Group _ Main,Clarity Travel Ltd,         211,£36.50,Business Travel
ECGD,ECGD,12 Sep 22,Home Travel /Subsistence,Business Group _ Main,Clarity Travel Ltd,         211,£38.30,Business Travel
ECGD,ECGD,12 Sep 22,Home Travel /Subsistence,Business Group _ Main,Clarity Travel Ltd,         211,£38.30,Business Travel
ECGD,ECGD,12 Sep 22,Home Travel /Subsistence,Business Group _ Main,Clarity Travel Ltd,         211,£48.49,Business Travel
ECGD,ECGD,12 Sep 22,Home Travel /Subsistence,Business Group _ Main,Clarity Travel Ltd,         211,£48.49,Business Travel
ECGD,ECGD,12 Sep 22,Home Travel /Subsistence,Business Group _ Main,Clarity Travel Ltd,         211,£49.50,Business Travel
ECGD,ECGD,12 Sep 22,Home Travel /Subsistence,Business Group _ Main,Clarity Travel Ltd,         211,£51.40,Business Travel
ECGD,ECGD,12 Sep 22,Home Travel /Subsistence,Business Group _ Main,Clarity Travel Ltd,         211,£51.40,Business Travel
ECGD,ECGD,12 Sep 22,Home Travel /Subsistence,Business Group _ Main,Clarity Travel Ltd,         211,£53.82,Business Travel
ECGD,ECGD,12 Sep 22,Home Travel /Subsistence,Business Group _ Main,Clarity Travel Ltd,         211,£63.30,Business Travel
ECGD,ECGD,12 Sep 22,Home Travel /Subsistence,Business Group _ Main,Clarity Travel Ltd,         211,£70.45,Business Travel
ECGD,ECGD,12 Sep 22,Home Travel /Subsistence,Business Group _ Main,Clarity Travel Ltd,         211,£70.70,Business Travel
ECGD,ECGD,12 Sep 22,Home Travel /Subsistence,Business Group _ Main,Clarity Travel Ltd,         211,£70.70,Business Travel
ECGD,ECGD,12 Sep 22,Home Travel /Subsistence,Business Group _ Main,Clarity Travel Ltd,         211,£71.00,Business Travel
ECGD,ECGD,12 Sep 22,Home Travel /Subsistence,Business Group _ Main,Clarity Travel Ltd,         211,£75.00,Business Travel
ECGD,ECGD,12 Sep 22,Home Travel /Subsistence,Business Group _ Main,Clarity Travel Ltd,         211,£75.00,Business Travel
ECGD,ECGD,12 Sep 22,Home Travel /Subsistence,Business Group _ Main,Clarity Travel Ltd,         211,£78.53,Business Travel
ECGD,ECGD,12 Sep 22,Home Travel /Subsistence,Business Group _ Main,Clarity Travel Ltd,         211,£78.53,Business Travel
ECGD,ECGD,12 Sep 22,Home Travel /Subsistence,Business Group _ Main,Clarity Travel Ltd,         211,£80.00,Business Travel
ECGD,ECGD,12 Sep 22,Home Travel /Subsistence,Business Group _ Main,Clarity Travel Ltd,         211,£88.50,Business Travel
ECGD,ECGD,12 Sep 22,Home Travel /Subsistence,Business Group _ Main,Clarity Travel Ltd,         211,£89.30,Business Travel
ECGD,ECGD,12 Sep 22,Home Travel /Subsistence,Business Group _ Main,Clarity Travel Ltd,         211,£92.60,Business Travel
ECGD,ECGD,12 Sep 22,Home Travel /Subsistence,Business Group _ Main,Clarity Travel Ltd,         211,£123.70,Business Travel
ECGD,ECGD,12 Sep 22,Home Travel /Subsistence,Business Group _ Main,Clarity Travel Ltd,         211,£124.00,Business Travel
ECGD,ECGD,12 Sep 22,Home Travel /Subsistence,Business Group _ Main,Clarity Travel Ltd,         211,£125.50,Business Travel
ECGD,ECGD,12 Sep 22,Home Travel /Subsistence,Business Group _ Main,Clarity Travel Ltd,         211,£155.40,Business Travel
ECGD,ECGD,12 Sep 22,Home Travel /Subsistence,Business Group _ Main,Clarity Travel Ltd,         211,£155.40,Business Travel
ECGD,ECGD,12 Sep 22,Home Travel /Subsistence,Business Group _ Main,Clarity Travel Ltd,         211,£267.35,Business Travel
ECGD,ECGD,12 Sep 22,Home Travel /Subsistence,Business Group _ Main,Clarity Travel Ltd,         211,£267.35,Business Travel
ECGD,ECGD,12 Sep 22,Home Travel /Subsistence,OCCMC,Clarity Travel Ltd,         211,£1.00,Business Travel
ECGD,ECGD,12 Sep 22,Home Travel /Subsistence,OCCMC,Clarity Travel Ltd,         211,£2.00,Business Travel
ECGD,ECGD,12 Sep 22,Home Travel /Subsistence,OCCMC,Clarity Travel Ltd,         211,£2.00,Business Travel
ECGD,ECGD,12 Sep 22,Home Travel /Subsistence,OCCMC,Clarity Travel Ltd,         211,£2.00,Business Travel
ECGD,ECGD,12 Sep 22,Home Travel /Subsistence,OCCMC,Clarity Travel Ltd,         211,£2.00,Business Travel
ECGD,ECGD,12 Sep 22,Home Travel /Subsistence,OCCMC,Clarity Travel Ltd,         211,£4.00,Business Travel
ECGD,ECGD,12 Sep 22,Home Travel /Subsistence,OCCMC,Clarity Travel Ltd,         211,£4.00,Business Travel
ECGD,ECGD,12 Sep 22,Home Travel /Subsistence,OCCMC,Clarity Travel Ltd,         211,£12.40,Business Travel
ECGD,ECGD,12 Sep 22,Home Travel /Subsistence,OCCMC,Clarity Travel Ltd,         211,£38.30,Business Travel
ECGD,ECGD,12 Sep 22,Home Travel /Subsistence,OCCMC,Clarity Travel Ltd,         211,£38.30,Business Travel
ECGD,ECGD,12 Sep 22,Home Travel /Subsistence,OCCMC,Clarity Travel Ltd,         211,£51.80,Business Travel
ECGD,ECGD,12 Sep 22,Home Travel /Subsistence,OCCMC,Clarity Travel Ltd,         211,£62.50,Business Travel
ECGD,ECGD,12 Sep 22,Home Travel /Subsistence,OCCMC,Clarity Travel Ltd,         211,£64.00,Business Travel
ECGD,ECGD,12 Sep 22,Home Travel /Subsistence,OCCMC,Clarity Travel Ltd,         211,£99.70,Business Travel
ECGD,ECGD,12 Sep 22,Home Travel /Subsistence,OCCMC,Clarity Travel Ltd,         211,£105.00,Business Travel
ECGD,ECGD,12 Sep 22,Home Travel /Subsistence,OCCMC,Clarity Travel Ltd,         211,£105.00,Business Travel
ECGD,ECGD,12 Sep 22,Home Travel /Subsistence,OCCMC,Clarity Travel Ltd,         211,£122.60,Business Travel
ECGD,ECGD,12 Sep 22,Home Travel /Subsistence,OCCMC,Clarity Travel Ltd,         211,£122.60,Business Travel
ECGD,ECGD,12 Sep 22,Home Travel /Subsistence,OCCMC,Clarity Travel Ltd,         211,£122.60,Business Travel
ECGD,ECGD,12 Sep 22,Home Travel /Subsistence,OCCMC,Clarity Travel Ltd,         211,£155.40,Business Travel
ECGD,ECGD,12 Sep 22,Home Travel /Subsistence,OCCMC,Clarity Travel Ltd,         211,£155.40,Business Travel
ECGD,ECGD,12 Sep 22,Home Travel /Subsistence,OCCMC,Clarity Travel Ltd,         211,£165.00,Business Travel
ECGD,ECGD,12 Sep 22,Home Travel /Subsistence,OCCMC,Clarity Travel Ltd,         211,£172.50,Business Travel
ECGD,ECGD,12 Sep 22,Home Travel /Subsistence,Portfolio Management Division,Clarity Travel Ltd,         211,£1.00,Business Travel
ECGD,ECGD,12 Sep 22,Home Travel /Subsistence,Portfolio Management Division,Clarity Travel Ltd,         211,£1.00,Business Travel
ECGD,ECGD,12 Sep 22,Home Travel /Subsistence,Portfolio Management Division,Clarity Travel Ltd,         211,£1.00,Business Travel
ECGD,ECGD,12 Sep 22,Home Travel /Subsistence,Portfolio Management Division,Clarity Travel Ltd,         211,£1.00,Business Travel
ECGD,ECGD,12 Sep 22,Home Travel /Subsistence,Portfolio Management Division,Clarity Travel Ltd,         211,£2.00,Business Travel
ECGD,ECGD,12 Sep 22,Home Travel /Subsistence,Portfolio Management Division,Clarity Travel Ltd,         211,£3.00,Business Travel
ECGD,ECGD,12 Sep 22,Home Travel /Subsistence,Portfolio Management Division,Clarity Travel Ltd,         211,£13.85,Business Travel
ECGD,ECGD,12 Sep 22,Home Travel /Subsistence,Portfolio Management Division,Clarity Travel Ltd,         211,£29.50,Business Travel
ECGD,ECGD,12 Sep 22,Home Travel /Subsistence,Portfolio Management Division,Clarity Travel Ltd,         211,£29.60,Business Travel
ECGD,ECGD,12 Sep 22,Home Travel /Subsistence,Portfolio Management Division,Clarity Travel Ltd,         211,£29.60,Business Travel
ECGD,ECGD,12 Sep 22,Home Travel /Subsistence,Portfolio Management Division,Clarity Travel Ltd,         211,£30.40,Business Travel
ECGD,ECGD,12 Sep 22,Home Travel /Subsistence,Portfolio Management Division,Clarity Travel Ltd,         211,£36.40,Business Travel
ECGD,ECGD,12 Sep 22,Home Travel /Subsistence,Portfolio Management Division,Clarity Travel Ltd,         211,£36.70,Business Travel
ECGD,ECGD,12 Sep 22,Home Travel /Subsistence,Portfolio Management Division,Clarity Travel Ltd,         211,£36.70,Business Travel
ECGD,ECGD,12 Sep 22,Home Travel /Subsistence,Pricing & Risk Analytics Division,Clarity Travel Ltd,         211,£1.00,Business Travel
ECGD,ECGD,12 Sep 22,Home Travel /Subsistence,Pricing & Risk Analytics Division,Clarity Travel Ltd,         211,£36.20,Business Travel
ECGD,ECGD,12 Sep 22,Home Travel /Subsistence,Risk Approval Division,Clarity Travel Ltd,         211,£1.00,Business Travel
ECGD,ECGD,12 Sep 22,Home Travel /Subsistence,Risk Approval Division,Clarity Travel Ltd,         211,£1.00,Business Travel
ECGD,ECGD,12 Sep 22,Home Travel /Subsistence,Risk Approval Division,Clarity Travel Ltd,         211,£1.00,Business Travel
ECGD,ECGD,12 Sep 22,Home Travel /Subsistence,Risk Approval Division,Clarity Travel Ltd,         211,£1.00,Business Travel
ECGD,ECGD,12 Sep 22,Home Travel /Subsistence,Risk Approval Division,Clarity Travel Ltd,         211,£9.90,Business Travel
ECGD,ECGD,12 Sep 22,Home Travel /Subsistence,Risk Approval Division,Clarity Travel Ltd,         211,£18.20,Business Travel
ECGD,ECGD,12 Sep 22,Home Travel /Subsistence,Risk Approval Division,Clarity Travel Ltd,         211,£29.60,Business Travel
ECGD,ECGD,12 Sep 22,Home Travel /Subsistence,Risk Approval Division,Clarity Travel Ltd,         211,£52.70,Business Travel
ECGD,ECGD,12 Sep 22,Home Travel /Subsistence,SPoCC,Clarity Travel Ltd,         211,£1.00,Business Travel
ECGD,ECGD,12 Sep 22,Home Travel /Subsistence,SPoCC,Clarity Travel Ltd,         211,£1.00,Business Travel
ECGD,ECGD,12 Sep 22,Home Travel /Subsistence,SPoCC,Clarity Travel Ltd,         211,£1.00,Business Travel
ECGD,ECGD,12 Sep 22,Home Travel /Subsistence,SPoCC,Clarity Travel Ltd,         211,£1.00,Business Travel
ECGD,ECGD,12 Sep 22,Home Travel /Subsistence,SPoCC,Clarity Travel Ltd,         211,£2.00,Business Travel
ECGD,ECGD,12 Sep 22,Home Travel /Subsistence,SPoCC,Clarity Travel Ltd,         211,£2.00,Business Travel
ECGD,ECGD,12 Sep 22,Home Travel /Subsistence,SPoCC,Clarity Travel Ltd,         211,£18.80,Business Travel
ECGD,ECGD,12 Sep 22,Home Travel /Subsistence,SPoCC,Clarity Travel Ltd,         211,£18.80,Business Travel
ECGD,ECGD,12 Sep 22,Home Travel /Subsistence,SPoCC,Clarity Travel Ltd,         211,£36.70,Business Travel
ECGD,ECGD,12 Sep 22,Home Travel /Subsistence,SPoCC,Clarity Travel Ltd,         211,£37.00,Business Travel
ECGD,ECGD,12 Sep 22,Home Travel /Subsistence,SPoCC,Clarity Travel Ltd,         211,£47.40,Business Travel
ECGD,ECGD,12 Sep 22,Home Travel /Subsistence,SPoCC,Clarity Travel Ltd,         211,£68.30,Business Travel
ECGD,ECGD,12 Sep 22,Home Travel /Subsistence,SPoCC,Clarity Travel Ltd,         211,£149.10,Business Travel
ECGD,ECGD,12 Sep 22,Home Travel /Subsistence,SPoCC,Clarity Travel Ltd,         211,£161.90,Business Travel
ECGD,ECGD,12 Sep 22,Home Travel /Subsistence,SPoCC,Clarity Travel Ltd,         211,£216.67,Business Travel
ECGD,ECGD,12 Sep 22,Overseas Travel (Case Related),Business Group _ Main,Clarity Travel Ltd,         211,£7.00,Business Travel
ECGD,ECGD,12 Sep 22,Overseas Travel (Case Related),Business Group _ Main,Clarity Travel Ltd,         211,£874.36,Business Travel
ECGD,ECGD,12 Sep 22,Overseas Travel (Case Related),SPoCC,Clarity Travel Ltd,         211,£2.00,Business Travel
ECGD,ECGD,12 Sep 22,Overseas Travel (Case Related),SPoCC,Clarity Travel Ltd,         211,£2.00,Business Travel
ECGD,ECGD,12 Sep 22,Overseas Travel (Case Related),SPoCC,Clarity Travel Ltd,         211,£2.00,Business Travel
ECGD,ECGD,12 Sep 22,Overseas Travel (Case Related),SPoCC,Clarity Travel Ltd,         211,£2.00,Business Travel
ECGD,ECGD,12 Sep 22,Overseas Travel (Case Related),SPoCC,Clarity Travel Ltd,         211,£2.00,Business Travel
ECGD,ECGD,12 Sep 22,Overseas Travel (Case Related),SPoCC,Clarity Travel Ltd,         211,£2.00,Business Travel
ECGD,ECGD,12 Sep 22,Overseas Travel (Case Related),SPoCC,Clarity Travel Ltd,         211,£2.00,Business Travel
ECGD,ECGD,12 Sep 22,Overseas Travel (Case Related),SPoCC,Clarity Travel Ltd,         211,£2.00,Business Travel
ECGD,ECGD,12 Sep 22,Overseas Travel (Case Related),SPoCC,Clarity Travel Ltd,         211,£3.50,Business Travel
ECGD,ECGD,12 Sep 22,Overseas Travel (Case Related),SPoCC,Clarity Travel Ltd,         211,£3.50,Business Travel
ECGD,ECGD,12 Sep 22,Overseas Travel (Case Related),SPoCC,Clarity Travel Ltd,         211,£7.00,Business Travel
ECGD,ECGD,12 Sep 22,Overseas Travel (Case Related),SPoCC,Clarity Travel Ltd,         211,£145.00,Business Travel
ECGD,ECGD,12 Sep 22,Overseas Travel (Case Related),SPoCC,Clarity Travel Ltd,         211,£145.00,Business Travel
ECGD,ECGD,12 Sep 22,Overseas Travel (Case Related),SPoCC,Clarity Travel Ltd,         211,£236.05,Business Travel
ECGD,ECGD,12 Sep 22,Overseas Travel (Case Related),SPoCC,Clarity Travel Ltd,         211,£236.05,Business Travel
ECGD,ECGD,12 Sep 22,Overseas Travel (Case Related),SPoCC,Clarity Travel Ltd,         211,£236.05,Business Travel
ECGD,ECGD,12 Sep 22,Overseas Travel (Case Related),SPoCC,Clarity Travel Ltd,         211,£236.05,Business Travel
ECGD,ECGD,12 Sep 22,Overseas Travel (Case Related),SPoCC,Clarity Travel Ltd,         211,£236.53,Business Travel
ECGD,ECGD,12 Sep 22,Overseas Travel (Case Related),SPoCC,Clarity Travel Ltd,         211,£236.53,Business Travel
ECGD,ECGD,12 Sep 22,Overseas Travel (Case Related),SPoCC,Clarity Travel Ltd,         211,£236.53,Business Travel
ECGD,ECGD,12 Sep 22,Overseas Travel (Case Related),SPoCC,Clarity Travel Ltd,         211,£236.53,Business Travel
ECGD,ECGD,12 Sep 22,Overseas Travel (Case Related),SPoCC,Clarity Travel Ltd,         211,"£4,156.46",Business Travel
ECGD,ECGD,12 Sep 22,Overseas Travel/Subsistence,Business Group _ Main,Clarity Travel Ltd,         211,£2.00,Business Travel
ECGD,ECGD,12 Sep 22,Overseas Travel/Subsistence,Business Group _ Main,Clarity Travel Ltd,         211,£2.00,Business Travel
ECGD,ECGD,12 Sep 22,Overseas Travel/Subsistence,Business Group _ Main,Clarity Travel Ltd,         211,£2.00,Business Travel
ECGD,ECGD,12 Sep 22,Overseas Travel/Subsistence,Business Group _ Main,Clarity Travel Ltd,         211,£2.00,Business Travel
ECGD,ECGD,12 Sep 22,Overseas Travel/Subsistence,Business Group _ Main,Clarity Travel Ltd,         211,£2.00,Business Travel
ECGD,ECGD,12 Sep 22,Overseas Travel/Subsistence,Business Group _ Main,Clarity Travel Ltd,         211,£3.50,Business Travel
ECGD,ECGD,12 Sep 22,Overseas Travel/Subsistence,Business Group _ Main,Clarity Travel Ltd,         211,£3.50,Business Travel
ECGD,ECGD,12 Sep 22,Overseas Travel/Subsistence,Business Group _ Main,Clarity Travel Ltd,         211,£3.50,Business Travel
ECGD,ECGD,12 Sep 22,Overseas Travel/Subsistence,Business Group _ Main,Clarity Travel Ltd,         211,£5.50,Business Travel
ECGD,ECGD,12 Sep 22,Overseas Travel/Subsistence,Business Group _ Main,Clarity Travel Ltd,         211,£5.50,Business Travel
ECGD,ECGD,12 Sep 22,Overseas Travel/Subsistence,Business Group _ Main,Clarity Travel Ltd,         211,£5.50,Business Travel
ECGD,ECGD,12 Sep 22,Overseas Travel/Subsistence,Business Group _ Main,Clarity Travel Ltd,         211,£7.00,Business Travel
ECGD,ECGD,12 Sep 22,Overseas Travel/Subsistence,Business Group _ Main,Clarity Travel Ltd,         211,£42.42,Business Travel
ECGD,ECGD,12 Sep 22,Overseas Travel/Subsistence,Business Group _ Main,Clarity Travel Ltd,         211,£134.24,Business Travel
ECGD,ECGD,12 Sep 22,Overseas Travel/Subsistence,Business Group _ Main,Clarity Travel Ltd,         211,£202.77,Business Travel
ECGD,ECGD,12 Sep 22,Overseas Travel/Subsistence,Business Group _ Main,Clarity Travel Ltd,         211,£202.77,Business Travel
ECGD,ECGD,12 Sep 22,Overseas Travel/Subsistence,Business Group _ Main,Clarity Travel Ltd,         211,£202.77,Business Travel
ECGD,ECGD,12 Sep 22,Overseas Travel/Subsistence,Business Group _ Main,Clarity Travel Ltd,         211,£286.33,Business Travel
ECGD,ECGD,12 Sep 22,Overseas Travel/Subsistence,Business Group _ Main,Clarity Travel Ltd,         211,£286.33,Business Travel
ECGD,ECGD,12 Sep 22,Overseas Travel/Subsistence,Business Group _ Main,Clarity Travel Ltd,         211,£286.33,Business Travel
ECGD,ECGD,12 Sep 22,Overseas Travel/Subsistence,Business Group _ Main,Clarity Travel Ltd,         211,£323.80,Business Travel
ECGD,ECGD,12 Sep 22,Overseas Travel/Subsistence,Business Group _ Main,Clarity Travel Ltd,         211,£323.80,Business Travel
ECGD,ECGD,12 Sep 22,Overseas Travel/Subsistence,Business Group _ Main,Clarity Travel Ltd,         211,£323.80,Business Travel
ECGD,ECGD,12 Sep 22,Overseas Travel/Subsistence,Business Group _ Main,Clarity Travel Ltd,         211,£517.87,Business Travel
ECGD,ECGD,12 Sep 22,Overseas Travel/Subsistence,Business Group _ Main,Clarity Travel Ltd,         211,£881.97,Business Travel
ECGD,ECGD,12 Sep 22,Overseas Travel/Subsistence,Business Group _ Main,Clarity Travel Ltd,         211,£881.97,Business Travel
ECGD,ECGD,12 Sep 22,Overseas Travel/Subsistence,Business Group _ Main,Clarity Travel Ltd,         211,£881.97,Business Travel
ECGD,ECGD,12 Sep 22,Overseas Travel/Subsistence,OCCMC,Clarity Travel Ltd,         211,£3.50,Business Travel
ECGD,ECGD,12 Sep 22,Overseas Travel/Subsistence,OCCMC,Clarity Travel Ltd,         211,£671.77,Business Travel
ECGD,ECGD,12 Sep 22,Overseas Travel/Subsistence,Risk Approval Division,Clarity Travel Ltd,         211,£2.00,Business Travel
ECGD,ECGD,12 Sep 22,Overseas Travel/Subsistence,Risk Approval Division,Clarity Travel Ltd,         211,£2.00,Business Travel
ECGD,ECGD,12 Sep 22,Overseas Travel/Subsistence,Risk Approval Division,Clarity Travel Ltd,         211,£2.00,Business Travel
ECGD,ECGD,12 Sep 22,Overseas Travel/Subsistence,Risk Approval Division,Clarity Travel Ltd,         211,£482.26,Business Travel
ECGD,ECGD,12 Sep 22,Overseas Travel/Subsistence,Risk Approval Division,Clarity Travel Ltd,         211,£482.26,Business Travel
ECGD,ECGD,12 Sep 22,Overseas Travel/Subsistence,Risk Approval Division,Clarity Travel Ltd,         211,£482.26,Business Travel
ECGD,ECGD,12 Sep 22,Overseas Travel/Subsistence,SPoCC,Clarity Travel Ltd,         211,£5.50,Business Travel
ECGD,ECGD,12 Sep 22,Overseas Travel/Subsistence,SPoCC,Clarity Travel Ltd,         211,£7.00,Business Travel
ECGD,ECGD,12 Sep 22,Overseas Travel/Subsistence,SPoCC,Clarity Travel Ltd,         211,£7.00,Business Travel
ECGD,ECGD,12 Sep 22,Overseas Travel/Subsistence,SPoCC,Clarity Travel Ltd,         211,£134.54,Business Travel
ECGD,ECGD,12 Sep 22,Overseas Travel/Subsistence,SPoCC,Clarity Travel Ltd,         211,£748.42,Business Travel
ECGD,ECGD,12 Sep 22,Overseas Travel/Subsistence,SPoCC,Clarity Travel Ltd,         211,£979.66,Business Travel
ECGD,ECGD,12 Sep 22,Overseas Travel/Subsistence,SPoCC,Clarity Travel Ltd,         211,£979.66,Business Travel
ECGD,ECGD,5 Sep 22,Agency - Interim Managers,HRD,Alexander Mann Solutions,       82863,"£2,110.16",Interim Staff
ECGD,ECGD,5 Sep 22,Agency - Interim Managers,HRD,Alexander Mann Solutions,       82863,"£2,488.05",Interim Staff
ECGD,ECGD,5 Sep 22,Agency - Interim Managers,HRD,Alexander Mann Solutions,       82863,"£2,625.25",Interim Staff
ECGD,ECGD,5 Sep 22,Agency - Interim Managers,HRD,Alexander Mann Solutions,       82863,"£2,669.04",Interim Staff
ECGD,ECGD,5 Sep 22,Agency - Interim Managers,HRD,Alexander Mann Solutions,       82863,"£3,336.30",Interim Staff
ECGD,ECGD,5 Sep 22,Agency - Interim Managers,HRD,Alexander Mann Solutions,       82863,"£3,408.70",Interim Staff
ECGD,ECGD,5 Sep 22,Agency - Specialist Contractors,HRD,Alexander Mann Solutions,       82863,£718.77,Interim Staff
ECGD,ECGD,5 Sep 22,Agency - Specialist Contractors,HRD,Alexander Mann Solutions,       82863,£962.40,Interim Staff
ECGD,ECGD,5 Sep 22,Agency - Specialist Contractors,HRD,Alexander Mann Solutions,       82863,£962.40,Interim Staff
ECGD,ECGD,5 Sep 22,Agency - Specialist Contractors,HRD,Alexander Mann Solutions,       82863,"£1,180.54",Interim Staff
ECGD,ECGD,5 Sep 22,Agency - Specialist Contractors,HRD,Alexander Mann Solutions,       82863,"£2,438.05",Interim Staff
ECGD,ECGD,5 Sep 22,Agency - Specialist Contractors,HRD,Alexander Mann Solutions,       82863,"£2,438.05",Interim Staff
ECGD,ECGD,5 Sep 22,Agency - Specialist Contractors,HRD,Alexander Mann Solutions,       82863,"£2,438.05",Interim Staff
ECGD,ECGD,5 Sep 22,Agency - Specialist Contractors,HRD,Alexander Mann Solutions,       82863,"£2,951.35",Interim Staff
ECGD,ECGD,5 Sep 22,Agency - Specialist Contractors,HRD,Alexander Mann Solutions,       82863,"£4,146.75",Interim Staff
ECGD,ECGD,5 Sep 22,Recruitment,HRD,"Russell Reynolds Associates, Ltd",       82875,"£24,166.00",Agency Search Fee
ECGD,ECGD,5 Sep 22,Capital Items (goods),HRD,HM Treasury,       82879,"£55,258.38",Building Works
ECGD,ECGD,5 Sep 22,Agency - Interim Managers,HRD,Alexander Mann Solutions,       82884,£667.26,Interim Staff
ECGD,ECGD,5 Sep 22,Agency - Interim Managers,HRD,Alexander Mann Solutions,       82884,£667.26,Interim Staff
ECGD,ECGD,5 Sep 22,Agency - Interim Managers,HRD,Alexander Mann Solutions,       82884,£667.26,Interim Staff
ECGD,ECGD,5 Sep 22,Agency - Interim Managers,HRD,Alexander Mann Solutions,       82884,£667.26,Interim Staff
ECGD,ECGD,5 Sep 22,Agency - Interim Managers,HRD,Alexander Mann Solutions,       82884,£667.26,Interim Staff
ECGD,ECGD,5 Sep 22,Agency - Interim Managers,HRD,Alexander Mann Solutions,       82884,£667.26,Interim Staff
ECGD,ECGD,5 Sep 22,Agency - Interim Managers,HRD,Alexander Mann Solutions,       82884,£667.26,Interim Staff
ECGD,ECGD,5 Sep 22,Agency - Interim Managers,HRD,Alexander Mann Solutions,       82884,£667.26,Interim Staff
ECGD,ECGD,5 Sep 22,Agency - Interim Managers,HRD,Alexander Mann Solutions,       82884,£667.26,Interim Staff
ECGD,ECGD,5 Sep 22,Agency - Interim Managers,HRD,Alexander Mann Solutions,       82884,£667.26,Interim Staff
ECGD,ECGD,5 Sep 22,Agency - Interim Managers,HRD,Alexander Mann Solutions,       82884,£834.08,Interim Staff
ECGD,ECGD,5 Sep 22,Agency - Interim Managers,HRD,Alexander Mann Solutions,       82884,"£1,990.44",Interim Staff
ECGD,ECGD,5 Sep 22,Agency - Interim Managers,HRD,Alexander Mann Solutions,       82884,"£2,110.16",Interim Staff
ECGD,ECGD,5 Sep 22,Agency - Interim Managers,HRD,Alexander Mann Solutions,       82884,"£2,362.70",Interim Staff
ECGD,ECGD,5 Sep 22,Agency - Interim Managers,HRD,Alexander Mann Solutions,       82884,"£6,005.34",Interim Staff
ECGD,ECGD,5 Sep 22,Agency - Specialist Contractors,HRD,Alexander Mann Solutions,       82884,£256.63,Interim Staff
ECGD,ECGD,5 Sep 22,Agency - Specialist Contractors,HRD,Alexander Mann Solutions,       82884,£256.63,Interim Staff
ECGD,ECGD,5 Sep 22,Agency - Specialist Contractors,HRD,Alexander Mann Solutions,       82884,£513.26,Interim Staff
ECGD,ECGD,5 Sep 22,Agency - Specialist Contractors,HRD,Alexander Mann Solutions,       82884,£769.92,Interim Staff
ECGD,ECGD,5 Sep 22,Agency - Specialist Contractors,HRD,Alexander Mann Solutions,       82884,"£2,656.22",Interim Staff
ECGD,ECGD,5 Sep 22,Agency - Specialist Contractors,HRD,Alexander Mann Solutions,       82884,"£2,669.04",Interim Staff
ECGD,ECGD,5 Sep 22,Agency - Specialist Contractors,HRD,Alexander Mann Solutions,       82884,"£2,902.73",Interim Staff
ECGD,ECGD,5 Sep 22,Agency - Specialist Contractors,HRD,Alexander Mann Solutions,       82884,"£2,951.35",Interim Staff
ECGD,ECGD,5 Sep 22,Agency - Specialist Contractors,HRD,Alexander Mann Solutions,       82884,"£2,951.35",Interim Staff
ECGD,ECGD,5 Sep 22,Agency - Specialist Contractors,HRD,Alexander Mann Solutions,       82884,"£3,593.85",Interim Staff
ECGD,ECGD,5 Sep 22,Agency - Temporary Staff,HRD,Alexander Mann Solutions,       82884,£501.11,Interim Staff
ECGD,ECGD,12 Sep 22,IT Cloud and Hosting,ID,Bytes Software Services Ltd,       82891,"£66,978.60",IT Systems
ECGD,ECGD,12 Sep 22,Overseas Export Managers,OCCMC,Green Park Interim & Executive Searc,       82908,"£28,273.87",Overseas Staff
ECGD,ECGD,16 Sep 22,IT Software Licensing & Subscription,ID,Bureau Van Dijk Ltd,       82923,"£135,000.00",IT Systems
ECGD,ECGD,16 Sep 22,Agency - Interim Managers,HRD,Alexander Mann Solutions,       82932,"£1,990.44",Interim Staff
ECGD,ECGD,16 Sep 22,Agency - Interim Managers,HRD,Alexander Mann Solutions,       82932,"£2,100.20",Interim Staff
ECGD,ECGD,16 Sep 22,Agency - Interim Managers,HRD,Alexander Mann Solutions,       82932,"£2,110.16",Interim Staff
ECGD,ECGD,16 Sep 22,Agency - Interim Managers,HRD,Alexander Mann Solutions,       82932,"£2,625.25",Interim Staff
ECGD,ECGD,16 Sep 22,Agency - Interim Managers,HRD,Alexander Mann Solutions,       82932,"£2,726.96",Interim Staff
ECGD,ECGD,16 Sep 22,Agency - Interim Managers,HRD,Alexander Mann Solutions,       82932,"£3,336.30",Interim Staff
ECGD,ECGD,16 Sep 22,Agency - Interim Managers,HRD,Alexander Mann Solutions,       82932,"£3,408.70",Interim Staff
ECGD,ECGD,16 Sep 22,Agency - Interim Managers,HRD,Alexander Mann Solutions,       82932,"£3,408.70",Interim Staff
ECGD,ECGD,16 Sep 22,Agency - Interim Managers,HRD,Alexander Mann Solutions,       82932,"£3,408.70",Interim Staff
ECGD,ECGD,16 Sep 22,Agency - Interim Managers,HRD,Alexander Mann Solutions,       82932,"£3,408.70",Interim Staff
ECGD,ECGD,16 Sep 22,Agency - Interim Managers,HRD,Alexander Mann Solutions,       82932,"£6,135.66",Interim Staff
ECGD,ECGD,16 Sep 22,Agency - Specialist Contractors,HRD,Alexander Mann Solutions,       82932,"£1,950.44",Interim Staff
ECGD,ECGD,16 Sep 22,Agency - Specialist Contractors,HRD,Alexander Mann Solutions,       82932,"£1,950.44",Interim Staff
ECGD,ECGD,16 Sep 22,Agency - Specialist Contractors,HRD,Alexander Mann Solutions,       82932,"£2,155.74",Interim Staff
ECGD,ECGD,16 Sep 22,Agency - Specialist Contractors,HRD,Alexander Mann Solutions,       82932,"£2,361.08",Interim Staff
ECGD,ECGD,16 Sep 22,Agency - Specialist Contractors,HRD,Alexander Mann Solutions,       82932,"£2,361.08",Interim Staff
ECGD,ECGD,16 Sep 22,Agency - Specialist Contractors,HRD,Alexander Mann Solutions,       82932,"£2,361.08",Interim Staff
ECGD,ECGD,16 Sep 22,Agency - Specialist Contractors,HRD,Alexander Mann Solutions,       82932,"£2,874.32",Interim Staff
ECGD,ECGD,16 Sep 22,Agency - Specialist Contractors,HRD,Alexander Mann Solutions,       82932,"£2,875.08",Interim Staff
ECGD,ECGD,16 Sep 22,Agency - Specialist Contractors,HRD,Alexander Mann Solutions,       82932,"£3,079.60",Interim Staff
ECGD,ECGD,16 Sep 22,Agency - Specialist Contractors,HRD,Alexander Mann Solutions,       82932,"£3,079.60",Interim Staff
ECGD,ECGD,16 Sep 22,Agency - Specialist Contractors,HRD,Alexander Mann Solutions,       82932,"£3,079.60",Interim Staff
ECGD,ECGD,16 Sep 22,Agency - Specialist Contractors,HRD,Alexander Mann Solutions,       82932,"£3,317.40",Interim Staff
ECGD,ECGD,16 Sep 22,Agency - Temporary Staff,HRD,Alexander Mann Solutions,       82932,£381.80,Interim Staff
ECGD,ECGD,16 Sep 22,Agency - Temporary Staff,HRD,Alexander Mann Solutions,       82932,£553.61,Interim Staff
ECGD,ECGD,26 Sep 22,Agency - Interim Managers,HRD,Alexander Mann Solutions,       82939,"£1,890.16",Interim Staff
ECGD,ECGD,26 Sep 22,Agency - Interim Managers,HRD,Alexander Mann Solutions,       82939,"£2,001.78",Interim Staff
ECGD,ECGD,26 Sep 22,Agency - Interim Managers,HRD,Alexander Mann Solutions,       82939,"£2,362.70",Interim Staff
ECGD,ECGD,26 Sep 22,Agency - Interim Managers,HRD,Alexander Mann Solutions,       82939,"£2,362.70",Interim Staff
ECGD,ECGD,26 Sep 22,Agency - Interim Managers,HRD,Alexander Mann Solutions,       82939,"£2,625.25",Interim Staff
ECGD,ECGD,26 Sep 22,Agency - Interim Managers,HRD,Alexander Mann Solutions,       82939,"£2,637.70",Interim Staff
ECGD,ECGD,26 Sep 22,Agency - Interim Managers,HRD,Alexander Mann Solutions,       82939,"£3,408.70",Interim Staff
ECGD,ECGD,26 Sep 22,Agency - Interim Managers,HRD,Alexander Mann Solutions,       82939,"£3,408.70",Interim Staff
ECGD,ECGD,26 Sep 22,Agency - Specialist Contractors,HRD,Alexander Mann Solutions,       82939,"£1,770.81",Interim Staff
ECGD,ECGD,26 Sep 22,Agency - Specialist Contractors,HRD,Alexander Mann Solutions,       82939,"£1,847.80",Interim Staff
ECGD,ECGD,26 Sep 22,Agency - Specialist Contractors,HRD,Alexander Mann Solutions,       82939,"£2,730.24",Interim Staff
ECGD,ECGD,26 Sep 22,Agency - Specialist Contractors,HRD,Alexander Mann Solutions,       82939,"£2,951.35",Interim Staff
ECGD,ECGD,26 Sep 22,Agency - Specialist Contractors,HRD,Alexander Mann Solutions,       82939,"£3,079.60",Interim Staff
ECGD,ECGD,26 Sep 22,Agency - Specialist Contractors,HRD,Alexander Mann Solutions,       82939,"£3,336.30",Interim Staff
ECGD,ECGD,26 Sep 22,Agency - Specialist Contractors,HRD,Alexander Mann Solutions,       82939,"£3,412.80",Interim Staff
ECGD,ECGD,26 Sep 22,Agency - Specialist Contractors,HRD,Alexander Mann Solutions,       82939,"£3,593.85",Interim Staff
ECGD,ECGD,26 Sep 22,Agency - Specialist Contractors,HRD,Alexander Mann Solutions,       82939,"£4,146.75",Interim Staff
ECGD,ECGD,26 Sep 22,Agency - Temporary Staff,HRD,Alexander Mann Solutions,       82939,£482.02,Interim Staff
ECGD,ECGD,26 Sep 22,Agency - Temporary Staff,HRD,Alexander Mann Solutions,       82939,£687.24,Interim Staff
ECGD,ECGD,27 Sep 22,IT BAU Change & Small Projects,ID,Specialist Computer Centres Ltd,       82949,"£22,260.75",IT Systems
ECGD,ECGD,27 Sep 22,Online costs,Risk Approval Division,S&P Global Market Intelligence,       82950,"£129,299.31",Country Risk Assesments
ECGD,ECGD,27 Sep 22,IT Software Licensing & Subscription,ID,Fidelity National Info Services,       82951,"£106,061.89",IT Systems
ECGD,ECGD,27 Sep 22,Marketing,OCCMC,Manning Gottlieb OMD,       82952,"£38,325.52",Marketing & Communications
ECGD,ECGD,27 Sep 22,Agency - Interim Managers,HRD,Alexander Mann Solutions,       82954,"£2,100.20",Interim Staff
ECGD,ECGD,27 Sep 22,Agency - Interim Managers,HRD,Alexander Mann Solutions,       82954,"£2,156.31",Interim Staff
ECGD,ECGD,27 Sep 22,Agency - Interim Managers,HRD,Alexander Mann Solutions,       82954,"£2,488.05",Interim Staff
ECGD,ECGD,27 Sep 22,Agency - Interim Managers,HRD,Alexander Mann Solutions,       82954,"£3,336.30",Interim Staff
ECGD,ECGD,27 Sep 22,Agency - Interim Managers,HRD,Alexander Mann Solutions,       82954,"£3,408.70",Interim Staff
ECGD,ECGD,27 Sep 22,Agency - Interim Managers,HRD,Alexander Mann Solutions,       82954,"£3,408.70",Interim Staff
ECGD,ECGD,27 Sep 22,Agency - Specialist Contractors,HRD,Alexander Mann Solutions,       82954,£256.63,Interim Staff
ECGD,ECGD,27 Sep 22,Agency - Specialist Contractors,HRD,Alexander Mann Solutions,       82954,£256.63,Interim Staff
ECGD,ECGD,27 Sep 22,Agency - Specialist Contractors,HRD,Alexander Mann Solutions,       82954,£590.27,Interim Staff
ECGD,ECGD,27 Sep 22,Agency - Specialist Contractors,HRD,Alexander Mann Solutions,       82954,"£1,847.76",Interim Staff
ECGD,ECGD,27 Sep 22,Agency - Specialist Contractors,HRD,Alexander Mann Solutions,       82954,"£1,847.80",Interim Staff
ECGD,ECGD,27 Sep 22,Agency - Specialist Contractors,HRD,Alexander Mann Solutions,       82954,"£2,438.05",Interim Staff
ECGD,ECGD,27 Sep 22,Agency - Specialist Contractors,HRD,Alexander Mann Solutions,       82954,"£2,438.05",Interim Staff
ECGD,ECGD,27 Sep 22,Agency - Specialist Contractors,HRD,Alexander Mann Solutions,       82954,"£2,669.04",Interim Staff
ECGD,ECGD,27 Sep 22,Agency - Specialist Contractors,HRD,Alexander Mann Solutions,       82954,"£2,874.32",Interim Staff
ECGD,ECGD,27 Sep 22,Agency - Specialist Contractors,HRD,Alexander Mann Solutions,       82954,"£2,940.28",Interim Staff
ECGD,ECGD,27 Sep 22,Agency - Specialist Contractors,HRD,Alexander Mann Solutions,       82954,"£2,951.35",Interim Staff
ECGD,ECGD,27 Sep 22,Agency - Specialist Contractors,HRD,Alexander Mann Solutions,       82954,"£2,951.35",Interim Staff
ECGD,ECGD,27 Sep 22,Agency - Specialist Contractors,HRD,Alexander Mann Solutions,       82954,"£3,336.30",Interim Staff
ECGD,ECGD,27 Sep 22,Agency - Specialist Contractors,HRD,Alexander Mann Solutions,       82954,"£3,412.80",Interim Staff
ECGD,ECGD,27 Sep 22,Agency - Specialist Contractors,HRD,Alexander Mann Solutions,       82954,"£3,412.80",Interim Staff
ECGD,ECGD,27 Sep 22,Agency - Specialist Contractors,HRD,Alexander Mann Solutions,       82954,"£3,675.35",Interim Staff
ECGD,ECGD,27 Sep 22,Agency - Specialist Contractors,HRD,Alexander Mann Solutions,       82954,"£3,675.35",Interim Staff
ECGD,ECGD,27 Sep 22,Agency - Specialist Contractors,HRD,Alexander Mann Solutions,       82954,"£4,146.75",Interim Staff
ECGD,ECGD,27 Sep 22,Agency - Temporary Staff,HRD,Alexander Mann Solutions,       82954,£477.25,Interim Staff
ECGD,ECGD,27 Sep 22,Agency - Temporary Staff,HRD,Alexander Mann Solutions,       82954,£553.61,Interim Staff
ECGD,ECGD,27 Sep 22,Agency - Temporary Staff,HRD,Alexander Mann Solutions,       82954,£773.58,Interim Staff
ECGD,ECGD,27 Sep 22,Agency - Temporary Staff,HRD,Alexander Mann Solutions,       82954,£796.58,Interim Staff
ECGD,ECGD,27 Sep 22,1HGR Rent and Charges,HRD,Government Property Agency,       82957,"£2,286.60",Central Building Charges
ECGD,ECGD,27 Sep 22,1HGR Rent and Charges,HRD,Government Property Agency,       82957,"£8,936.25",Central Building Charges
ECGD,ECGD,27 Sep 22,1HGR Rent and Charges,HRD,Government Property Agency,       82957,"£9,044.62",Central Building Charges
ECGD,ECGD,27 Sep 22,1HGR Rent and Charges,HRD,Government Property Agency,       82957,"£490,210.43",Central Building Charges
ECGD,ECGD,27 Sep 22,Capital Expenditure,Change Board,Cogsworx Limited,       82960,"£44,525.00",Project Professional Services
ECGD,ECGD,27 Sep 22,Learning and Development,HRD,Infopro Digital Services Ltd,       82961,"£33,051.85",Learning & Development
ECGD,ECGD,29 Sep 22,Consultancy,Digital and Data Division,Cogsworx Limited,       82962,"£31,100.00",Project Consultancy
ECGD,ECGD,29 Sep 22,Consultancy,Digital and Data Division,Cogsworx Limited,       82970,"£22,300.00",Project Consultancy
ECGD,ECGD,29 Sep 22,IT Software Licensing & Subscription,ID,Bytes Software Services Ltd,       82972,"£20,844.00",IT Systems
ECGD,ECGD,30 Sep 22,Marketing,OCCMC,Manning Gottlieb OMD,       82979,"£22,567.44",Marketing & Communications
